bitfinex/quotes_BTCUSD_20250211
["timestamp","ask_amount","ask_price","bid_price","bid_amount"]
[1739287737722,0.0001066,97108.0,97092.0,0.5413]
[1739287737928,0.0001066,97108.0,97092.0,0.695791]
[1739287738605,0.0001066,97108.0,97094.0,0.154488]
[1739287738846,0.1545736,97108.0,97092.0,0.5413]
[1739287739069,0.0751,97106.0,97092.0,0.5413]
[1739287739287,0.0001066,97108.0,97092.0,0.5413]
[1739287739501,0.0001066,97108.0,97107.0,0.327468]
[1739287739759,0.0751,97140.0,97115.0,0.177456]
[1739287739964,0.0751,97140.0,97115.0,0.17848548]
[1739287740185,0.0751,97140.0,97115.0,0.177456]
[1739287740387,0.0751,97140.0,97115.0,0.27995965]
[1739287740597,0.0001068,97146.0,97115.0,1.05153286]
[1739287740803,0.0001068,97146.0,97115.0,1.17783286]
[1739287742076,0.0001068,97146.0,97115.0,1.11797129]
[1739287742281,0.0001068,97146.0,97115.0,1.13297129]
[1739287742931,0.1545128,97146.0,97115.0,1.11797129]
[1739287743140,0.0001068,97146.0,97115.0,1.11797129]
[1739287743353,0.0001068,97146.0,97115.0,1.13297129]
[1739287743576,0.154419,97139.0,97115.0,1.13297129]
[1739287743781,0.0751,97131.0,97115.0,0.85667129]
[1739287743992,0.0751,97131.0,97115.0,0.86267129]
[1739287744183,0.0751,97131.0,97115.0,0.85667129]
[1739287744600,0.0751,97131.0,97115.0,0.86367129]
[1739287744834,0.0751,97131.0,97115.0,0.58371164]
[1739287745061,0.20591,97130.0,97115.0,0.58371164]
[1739287745277,0.154436,97128.0,97115.0,0.58371164]
[1739287745487,0.154433,97130.0,97115.0,0.19686764]
[1739287745894,0.0751,97131.0,97115.0,0.19686764]
[1739287746937,0.22953,97131.0,97115.0,0.19686764]
[1739287747155,0.154433,97130.0,97115.0,0.19686764]
[1739287747373,0.229532,97131.0,97115.0,0.19686764]
[1739287747555,0.0751,97131.0,97115.0,0.19686764]
[1739287747959,0.229531,97131.0,97115.0,0.19686764]
[1739287748103,0.0751,97131.0,97115.0,0.19686764]
[1739287749616,0.229531,97131.0,97115.0,0.19686764]
[1739287750628,0.0751,97131.0,97115.0,0.19686764]
[1739287751412,0.15727373,97134.0,97115.0,0.24835164]
[1739287751616,0.00013313,97131.0,97115.0,0.04241164]
[1739287751817,0.00013313,97131.0,97117.0,0.154451]
[1739287752456,0.00013313,97131.0,97115.0,0.24835164]
[1739287752670,0.00013313,97131.0,97119.0,0.154449]
[1739287752893,0.00013313,97131.0,97116.0,0.154454]
[1739287753509,0.00013313,97131.0,97117.0,0.154451]
[1739287754142,0.00013313,97131.0,97115.0,0.22635164]
[1739287754348,0.00013313,97131.0,97116.0,0.154453]
[1739287754616,0.15456413,97131.0,97115.0,0.22635164]
[1739287754789,0.00013313,97131.0,97115.0,0.02041164]
[1739287755084,0.00013313,97131.0,97117.0,0.154452]
[1739287755296,0.00013313,97131.0,97118.0,0.15445]
[1739287756870,0.15456513,97131.0,97116.0,0.159453]
[1739287757071,0.00013313,97131.0,97119.0,0.154448]
[1739287757286,0.00013313,97131.0,97118.0,0.154451]
[1739287757499,0.00013313,97131.0,97117.0,0.205937]
[1739287757887,0.00013313,97131.0,97118.0,0.15445]
[1739287758090,0.154432,97130.0,97118.0,0.15445]
[1739287758516,0.00013313,97131.0,97115.0,0.02541164]
[1739287758832,0.00013313,97131.0,97115.0,0.02741164]
[1739287759052,0.0472,97126.0,97115.0,0.007]
[1739287759264,0.0472,97126.0,97115.0,0.002]
[1739287759265,0.154454,97116.0,97115.0,0.002]
[1739287763095,0.154454,97116.0,97115.0,0.003]
[1739287763651,0.205933,97119.0,97098.0,0.154482]
[1739287763851,0.154465,97109.0,97098.0,0.154482]
[1739287765153,0.001,97116.0,97099.0,0.3494149]
[1739287765366,0.001,97116.0,97104.0,0.0802]
[1739287765586,0.001,97116.0,97115.0,0.00022365]
[1739287765810,0.154448,97120.0,97115.0,0.00022365]
[1739287766004,0.0472,97126.0,97115.0,0.00022365]
[1739287766404,0.005,97119.0,97115.0,0.01188569]
[1739287766625,0.005,97119.0,97115.0,0.00022365]
[1739287766852,0.154445,97122.0,97115.0,0.00022365]
[1739287767186,0.205923,97124.0,97115.0,0.00022365]
[1739287767536,0.154445,97122.0,97115.0,0.00022365]
[1739287769186,0.205916,97127.0,97115.0,0.00022365]
[1739287769187,0.154444,97123.0,97115.0,0.00122365]
[1739287769394,0.154441,97124.0,97115.0,0.00122365]
[1739287769600,0.205921,97125.0,97115.0,0.00122365]
[1739287769799,0.205914,97128.0,97115.0,0.00122365]
[1739287770027,0.205909,97130.0,97115.0,0.00122365]
[1739287770288,0.154447,97121.0,97115.0,0.00422365]
[1739287770781,0.154447,97121.0,97115.0,0.00122365]
[1739287771196,0.154454,97116.0,97115.0,0.00122365]
[1739287771422,0.154454,97116.0,97115.0,0.00022365]
[1739287771620,0.205928,97122.0,97115.0,0.00022365]
[1739287772379,0.154454,97116.0,97115.0,0.00022365]
[1739287772584,0.0783,97133.0,97115.0,0.00022365]
[1739287772783,0.205913,97128.0,97115.0,0.00022365]
[1739287772989,0.30841665,97128.0,97115.0,0.00222365]
[1739287773371,0.154454,97117.0,97115.0,0.00522365]
[1739287773982,0.30841665,97128.0,97115.0,0.00222365]
[1739287773983,0.154451,97118.0,97115.0,0.00222365]
[1739287774187,0.154454,97116.0,97115.0,0.00222365]
[1739287775040,0.154454,97116.0,97115.0,0.00022365]
[1739287776507,0.154454,97116.0,97115.0,0.00122365]
[1739287776714,0.53345765,97116.0,97115.0,0.00122365]
[1739287776936,5.59883421,97116.0,97115.0,0.00122365]
[1739287777142,5.58883421,97116.0,97115.0,0.00122365]
[1739287777350,5.59883421,97116.0,97115.0,0.00122365]
[1739287777520,4.39143421,97116.0,97115.0,0.00122365]
[1739287777786,1.57263421,97116.0,97115.0,0.00122365]
[1739287778331,1.57263421,97116.0,97115.0,0.00522365]
[1739287778541,1.04973421,97116.0,97115.0,0.00522365]
[1739287778785,0.87803421,97116.0,97115.0,0.00022365]
[1739287779160,0.89203421,97116.0,97115.0,0.00122365]
[1739287779367,0.89403421,97116.0,97115.0,0.00122365]
[1739287779550,0.89203421,97116.0,97115.0,0.00122365]
[1739287779926,0.55583421,97116.0,97115.0,0.00222365]
[1739287780131,5.60583421,97116.0,97115.0,0.00222365]
[1739287781852,5.36776235,97116.0,97115.0,0.00222365]
[1739287782187,5.52221635,97116.0,97115.0,0.00222365]
[1739287784996,5.52221635,97116.0,97108.0,0.00022365]
[1739287784997,0.304465,97109.0,97108.0,3e-07]
[1739287785209,0.76804605,97109.0,97108.0,3e-07]
[1739287785462,0.154508,97082.0,97081.0,0.03879308]
[1739287785895,0.154519,97075.0,97074.0,0.0827]
[1739287786094,0.205988,97093.0,97074.0,0.0827]
[1739287786305,0.154519,97076.0,97074.0,0.0827]
[1739287786752,0.154516,97078.0,97074.0,0.08314404]
[1739287786930,0.206016,97080.0,97074.0,0.08314404]
[1739287787126,0.154516,97078.0,97074.0,0.08314404]
[1739287787325,0.154517,97077.0,97074.0,0.08314404]
[1739287788109,0.206011,97082.0,97074.0,0.08314404]
[1739287788110,0.154518,97076.0,97074.0,0.08314404]
[1739287788339,0.154519,97075.0,97074.0,0.08314404]
[1739287788882,0.154516,97077.0,97074.0,0.08314404]
[1739287789042,0.154513,97079.0,97074.0,0.08314404]
[1739287789470,0.002,97093.0,97074.0,0.08314404]
[1739287789666,0.154492,97092.0,97077.0,0.153516]
[1739287789873,0.1545,97088.0,97077.0,0.3226]
[1739287790089,0.205995,97090.0,97077.0,0.3226]
[1739287790445,0.1545,97087.0,97077.0,0.3226]
[1739287790660,0.001,97079.0,97077.0,0.3226]
[1739287792595,0.205976,97099.0,97077.0,0.3226]
[1739287792852,0.1545,97087.0,97077.0,0.3226]
[1739287793637,0.154499,97088.0,97077.0,0.3226]
[1739287794014,0.154501,97087.0,97077.0,0.3226]
[1739287794794,0.002,97099.0,97077.0,0.3236]
[1739287794795,0.154505,97084.0,97077.0,0.3236]
[1739287794928,0.154503,97086.0,97077.0,0.3236]
[1739287795324,0.154503,97086.0,97077.0,0.3226]
[1739287795711,0.154503,97086.0,97077.0,0.3236]
[1739287796048,0.411962,97096.0,97077.0,0.3236]
[1739287796250,0.154503,97086.0,97077.0,0.3236]
[1739287796479,0.154503,97086.0,97077.0,0.3226]
[1739287796884,0.154503,97086.0,97077.0,0.3236]
[1739287797204,0.154503,97086.0,97077.0,0.3276]
[1739287797803,0.154503,97086.0,97077.0,0.3236]
[1739287798240,0.155503,97086.0,97077.0,0.3286]
[1739287798926,0.001,97086.0,97077.0,0.3286]
[1739287799143,0.154503,97085.0,97077.0,0.3286]
[1739287799781,0.155502,97086.0,97077.0,0.3286]
[1739287800180,0.154503,97085.0,97077.0,0.3286]
[1739287800450,0.154508,97083.0,97077.0,0.3236]
[1739287800656,0.154508,97083.0,97077.0,0.3226]
[1739287800786,0.154508,97083.0,97077.0,0.3286]
[1739287801020,0.154514,97078.0,97077.0,0.3286]
[1739287801198,0.154514,97078.0,97077.0,0.32982386]
[1739287801402,0.154513,97079.0,97077.0,0.32382386]
[1739287801604,0.154514,97078.0,97077.0,0.32382386]
[1739287801800,0.154513,97080.0,97077.0,0.32482386]
[1739287802052,0.154514,97079.0,97077.0,0.32482386]
[1739287802494,0.154514,97079.0,97077.0,0.32382386]
[1739287802913,0.1434419,97100.0,97077.0,0.32382386]
[1739287803121,0.154514,97078.0,97077.0,0.32382386]
[1739287803956,0.154514,97078.0,97077.0,0.32282386]
[1739287804375,0.154514,97078.0,97077.0,0.32382386]
[1739287804603,0.154505,97085.0,97077.0,0.32382386]
[1739287804816,0.15451,97082.0,97077.0,0.32282386]
[1739287805026,0.001,97079.0,97078.0,0.283014]
[1739287805228,0.001,97079.0,97078.0,0.604614]
[1739287805466,0.154495,97090.0,97078.0,0.4501]
[1739287805676,0.15,97101.0,97078.0,0.4501]
[1739287805884,0.001,97085.0,97078.0,0.4501]
[1739287806492,0.154497,97089.0,97078.0,0.4501]
[1739287806919,0.001,97090.0,97078.0,0.4501]
[1739287806920,0.154499,97088.0,97078.0,0.4501]
[1739287807131,0.1545,97087.0,97078.0,0.4501]
[1739287808196,0.205997,97089.0,97078.0,0.4501]
[1739287808487,0.002,97085.0,97078.0,0.4501]
[1739287808719,0.154499,97088.0,97078.0,0.4501]
[1739287809070,0.205996,97089.0,97078.0,0.4501]
[1739287809275,0.1545,97088.0,97078.0,0.4501]
[1739287809683,0.1545,97088.0,97078.0,0.4511]
[1739287809882,0.001,97085.0,97078.0,0.4511]
[1739287810287,0.205994,97091.0,97078.0,0.4501]
[1739287810449,0.154498,97089.0,97078.0,0.4501]
[1739287810648,0.154467,97108.0,97095.0,0.154487]
[1739287810850,0.154463,97111.0,97086.0,0.492704]
[1739287811061,0.154473,97104.0,97090.0,0.235195]
[1739287811264,0.360424,97108.0,97093.0,0.15449]
[1739287811506,0.154468,97108.0,97093.0,0.15449]
[1739287811740,0.205952,97110.0,97093.0,0.15449]
[1739287811972,0.154467,97108.0,97093.0,0.15449]
[1739287812201,0.02,97118.0,97093.0,0.15449]
[1739287812202,0.154458,97114.0,97100.0,0.154478]
[1739287812361,0.205945,97114.0,97096.0,0.0807]
[1739287812580,0.15446,97112.0,97098.0,0.154483]
[1739287812779,0.154463,97111.0,97097.0,0.154483]
[1739287812926,0.003,97108.0,97097.0,0.154483]
[1739287813131,0.003,97108.0,97097.0,0.154484]
[1739287813440,0.154461,97112.0,97097.0,0.154484]
[1739287813640,0.0031066,97109.0,97096.0,0.18320365]
[1739287813873,0.0031066,97109.0,97108.0,0.253567]
[1739287814076,0.0031066,97109.0,97108.0,0.89737065]
[1739287815258,0.0001066,97109.0,97108.0,0.89737065]
[1739287815706,0.0001066,97109.0,97108.0,0.89437065]
[1739287815926,0.0061066,97109.0,97108.0,0.89437065]
[1739287816529,0.0011066,97109.0,97108.0,0.89737065]
[1739287817021,0.0031066,97109.0,97108.0,0.90137065]
[1739287817234,0.0031066,97109.0,97108.0,0.72390365]
[1739287817404,0.0031066,97109.0,97108.0,0.87837065]
[1739287818959,0.0031066,97109.0,97108.0,0.90137065]
[1739287819363,0.0031066,97109.0,97108.0,1.09977065]
[1739287819571,0.0031066,97109.0,97108.0,1.42237065]
[1739287819788,0.0001066,97109.0,97108.0,1.41537065]
[1739287820190,0.0011066,97109.0,97108.0,1.41937065]
[1739287821202,0.0021066,97109.0,97108.0,1.42537065]
[1739287821350,0.0011066,97109.0,97108.0,1.42137065]
[1739287821763,0.0031066,97109.0,97108.0,1.42537065]
[1739287822184,0.0031066,97109.0,97108.0,1.49709292]
[1739287822526,0.0031066,97109.0,97108.0,1.42537065]
[1739287823246,0.0021066,97109.0,97108.0,1.41937065]
[1739287823970,0.0031066,97109.0,97108.0,1.42537065]
[1739287824168,0.0001068,97146.0,97134.0,0.1245]
[1739287824405,0.00023993,97146.0,97145.0,0.380508]
[1739287824603,0.00023993,97146.0,97145.0,0.50601165]
[1739287825011,0.00023993,97146.0,97145.0,0.10250365]
[1739287825234,0.00023993,97146.0,97135.0,0.3226]
[1739287826000,0.00197792,97145.0,97135.0,0.3226]
[1739287826208,0.205882,97143.0,97135.0,0.3226]
[1739287826333,0.00197792,97145.0,97135.0,0.3226]
[1739287826543,0.154418,97139.0,97135.0,0.3226]
[1739287826913,0.00197271,97138.0,97135.0,0.3226]
[1739287827341,0.205881,97144.0,97135.0,0.3226]
[1739287827540,0.00197252,97137.0,97135.0,0.3226]
[1739287827741,0.154419,97139.0,97135.0,0.3226]
[1739287827940,0.00196378,97136.0,97135.0,0.3226]
[1739287828144,0.154419,97139.0,97135.0,0.3226]
[1739287828373,0.00195798,97136.0,97135.0,0.3226]
[1739287828582,0.00195798,97136.0,97124.0,0.15444]
[1739287828583,0.154435,97128.0,97122.0,0.3226]
[1739287828786,0.154432,97130.0,97122.0,0.3226]
[1739287828997,0.00195496,97127.0,97122.0,0.42510365]
[1739287829199,0.154423,97136.0,97123.0,0.154443]
[1739287829328,0.154425,97135.0,97122.0,0.42510365]
[1739287829541,0.205893,97138.0,97135.0,0.004]
[1739287829739,0.154419,97139.0,97135.0,0.004]
[1739287829940,0.15442,97138.0,97135.0,0.004]
[1739287830162,0.15442,97138.0,97126.0,0.154438]
[1739287830383,0.154414,97142.0,97128.0,0.154434]
[1739287830555,0.205877,97145.0,97126.0,0.154438]
[1739287830795,0.154418,97139.0,97126.0,0.154438]
[1739287831206,0.00023993,97146.0,97126.0,0.10250365]
[1739287831414,0.00023993,97146.0,97132.0,0.205905]
[1739287831614,0.15464693,97146.0,97133.0,0.154427]
[1739287831839,0.00023993,97146.0,97131.0,0.0801]
[1739287831979,0.00023993,97146.0,97137.0,0.15442]
[1739287832175,0.001,97145.0,97137.0,0.3226]
[1739287832389,0.00297268,97145.0,97144.0,0.154409]
[1739287832590,0.001,97145.0,97144.0,0.3226]
[1739287833215,0.00297373,97145.0,97144.0,0.3226]
[1739287833735,0.002,97145.0,97144.0,0.3226]
[1739287834297,0.00298526,97145.0,97144.0,0.3226]
[1739287834605,0.00298526,97145.0,97144.0,0.3236]
[1739287834851,0.00198526,97145.0,97144.0,0.3236]
[1739287835367,0.00198526,97145.0,97144.0,0.3226]
[1739287837007,0.00023993,97146.0,97144.0,0.3226]
[1739287837202,0.00198656,97145.0,97144.0,0.3226]
[1739287837652,0.00023993,97146.0,97144.0,0.3236]
[1739287837868,0.15639456,97145.0,97144.0,0.3236]
[1739287838066,0.00198656,97145.0,97144.0,0.3236]
[1739287838509,0.15639456,97145.0,97144.0,0.3226]
[1739287839578,0.15650106,97145.0,97144.0,0.3226]
[1739287841615,0.15650106,97145.0,97144.0,0.3246]
[1739287842230,0.15650106,97145.0,97144.0,0.3226]
[1739287842643,0.15950106,97145.0,97144.0,0.3226]
[1739287843267,0.15650106,97145.0,97144.0,0.3226]
[1739287843484,0.15650106,97145.0,97132.0,0.3226]
[1739287843485,0.154427,97133.0,97132.0,0.3226]
[1739287843907,0.15641247,97133.0,97132.0,0.3226]
[1739287844731,0.00198547,97133.0,97132.0,0.3226]
[1739287845154,0.205874,97147.0,97132.0,0.3226]
[1739287845155,0.154426,97134.0,97132.0,0.3226]
[1739287845361,0.154427,97133.0,97132.0,0.3226]
[1739287845567,0.15640109,97133.0,97132.0,0.3226]
[1739287846024,0.00197409,97133.0,97132.0,0.3276]
[1739287846236,0.00197409,97133.0,97132.0,0.235429]
[1739287846451,0.0001066,97155.0,97139.0,0.154417]
[1739287846452,0.205862,97153.0,97139.0,0.154417]
[1739287846659,0.154401,97150.0,97137.0,0.154419]
[1739287846864,0.1547086,97149.0,97137.0,0.15442]
[1739287847076,0.00197489,97144.0,97136.0,0.154421]
[1739287847293,0.00197489,97144.0,97132.0,0.39140765]
[1739287847510,0.00197489,97144.0,97136.0,0.0476]
[1739287847714,0.0003066,97149.0,97136.0,0.0476]
[1739287847872,0.154406,97147.0,97136.0,0.0476]
[1739287848075,0.00197489,97144.0,97137.0,0.154419]
[1739287848278,0.00197489,97144.0,97136.0,0.0476]
[1739287849359,0.00297489,97144.0,97136.0,0.0476]
[1739287849557,0.00297489,97144.0,97132.0,0.17850365]
[1739287849761,0.154424,97135.0,97132.0,0.076]
[1739287850008,0.154423,97136.0,97126.0,0.00022365]
[1739287850224,0.00198714,97134.0,97127.0,0.154435]
[1739287850376,0.00198733,97135.0,97128.0,0.154435]
[1739287850599,0.154414,97141.0,97127.0,0.205915]
[1739287850962,0.00198714,97134.0,97129.0,0.154432]
[1739287851085,0.154414,97141.0,97129.0,0.154432]
[1739287851286,0.154412,97143.0,97127.0,0.205915]
[1739287851493,0.00198829,97140.0,97128.0,0.205912]
[1739287851698,0.154418,97139.0,97127.0,0.154435]
[1739287851938,0.1564061,97139.0,97128.0,0.154434]
[1739287853171,0.0019881,97139.0,97128.0,0.002]
[1739287853490,0.154414,97141.0,97130.0,0.15443]
[1739287853692,0.154418,97139.0,97128.0,0.159435]
[1739287854137,0.00198646,97138.0,97128.0,0.159435]
[1739287854562,0.00198646,97138.0,97128.0,0.161435]
[1739287854770,0.00198646,97138.0,97128.0,0.002]
[1739287854975,0.154422,97137.0,97128.0,0.002]
[1739287855186,0.205846,97160.0,97128.0,0.002]
[1739287855398,0.00198608,97136.0,97131.0,0.15443]
[1739287855598,0.00198608,97136.0,97129.0,0.3226]
[1739287855599,0.154384,97160.0,97145.0,0.154406]
[1739287855774,0.1544907,97161.0,97145.0,0.154406]
[1739287855977,0.0001067,97161.0,97146.0,0.076]
[1739287856180,0.00198585,97160.0,97146.0,0.230405]
[1739287856395,0.00198585,97160.0,97146.0,0.0990405]
[1739287856602,0.00198585,97160.0,97146.0,0.076]
[1739287856813,0.00198585,97160.0,97150.0,0.1434419]
[1739287857024,0.00198585,97160.0,97159.0,0.154386]
[1739287857233,0.0001067,97161.0,97160.0,0.154384]
[1739287857858,0.0001067,97161.0,97160.0,0.25688765]
[1739287858210,0.0001067,97161.0,97160.0,0.33378765]
[1739287859443,0.0001067,97161.0,97160.0,0.32378765]
[1739287860635,0.0001067,97161.0,97160.0,0.17940365]
[1739287860859,0.0001067,97161.0,97160.0,0.33378765]
[1739287861130,0.0001067,97161.0,97160.0,0.3226]
[1739287861476,0.0001067,97161.0,97160.0,0.57948765]
[1739287861665,0.0001067,97161.0,97160.0,0.61174765]
[1739287861949,0.0001067,97161.0,97160.0,0.58048765]
[1739287862377,0.0001067,97161.0,97160.0,0.42610365]
[1739287862507,0.0001067,97161.0,97160.0,0.3226]
[1739287863030,0.0001067,97161.0,97160.0,0.3246]
[1739287863651,0.0001067,97161.0,97160.0,0.3256]
[1739287863881,0.1544887,97161.0,97160.0,0.3246]
[1739287864370,0.1544887,97161.0,97160.0,0.004]
[1739287864730,0.1544887,97161.0,97160.0,0.002]
[1739287865852,0.1544887,97161.0,97160.0,0.009]
[1739287866351,0.1544887,97161.0,97160.0,0.002]
[1739287867570,0.0001067,97161.0,97141.0,0.023]
[1739287867784,0.0001067,97161.0,97142.0,0.10250365]
[1739287867993,0.1544907,97161.0,97150.0,0.023]
[1739287868195,0.1574907,97161.0,97152.0,0.023]
[1739287868399,0.0031067,97161.0,97152.0,0.023]
[1739287868586,0.0001067,97161.0,97153.0,0.154394]
[1739287868841,0.154384,97160.0,97152.0,0.023]
[1739287869046,0.0011067,97161.0,97140.0,0.08256914]
[1739287869248,0.0011067,97161.0,97144.0,0.023]
[1739287869249,0.0001067,97161.0,97144.0,0.023]
[1739287869462,0.0001067,97161.0,97146.0,0.023]
[1739287869885,0.154385,97160.0,97147.0,0.154405]
[1739287870335,0.154386,97159.0,97147.0,0.154405]
[1739287870537,0.0001067,97161.0,97147.0,0.154405]
[1739287871047,0.0011067,97161.0,97147.0,0.154405]
[1739287871282,0.0011067,97161.0,97146.0,0.228874]
[1739287871497,0.0011067,97161.0,97153.0,0.154395]
[1739287871685,0.0011067,97161.0,97151.0,0.023]
[1739287871898,0.0011067,97161.0,97158.0,0.023]
[1739287872109,0.0011067,97161.0,97160.0,0.177384]
[1739287872314,0.0011067,97161.0,97160.0,0.27988765]
[1739287873082,0.0001067,97161.0,97160.0,0.60248765]
[1739287875916,0.0001067,97161.0,97160.0,0.60748765]
[1739287876504,0.0001067,97161.0,97160.0,0.62048765]
[1739287878081,0.0001067,97161.0,97160.0,0.7229913]
[1739287878485,0.0001067,97161.0,97160.0,0.69588765]
[1739287879520,0.0001067,97161.0,97160.0,0.84588765]
[1739287882062,0.0001067,97161.0,97160.0,1.38718765]
[1739287883280,0.0001067,97161.0,97160.0,1.37418765]
[1739287883516,0.0001067,97161.0,97160.0,1.36918765]
[1739287883688,0.0001067,97161.0,97160.0,1.4866913]
[1739287884267,0.0001067,97161.0,97160.0,1.5184913]
[1739287884496,0.0001067,97161.0,97160.0,1.42298765]
[1739287884697,0.0001067,97161.0,97160.0,1.43798765]
[1739287885056,0.0001067,97161.0,97160.0,1.43098765]
[1739287886594,0.0001067,97161.0,97160.0,1.41598765]
[1739287886793,0.0001067,97161.0,97160.0,1.43098765]
[1739287887586,0.0001067,97161.0,97160.0,1.40798765]
[1739287887920,0.0001067,97161.0,97160.0,1.36818765]
[1739287888062,0.0001067,97161.0,97160.0,1.38418765]
[1739287888406,0.0001067,97161.0,97160.0,1.36141151]
[1739287888607,0.0001067,97161.0,97160.0,1.36841151]
[1739287889376,0.0001067,97161.0,97160.0,1.39141151]
[1739287889571,0.0001067,97161.0,97160.0,1.24141151]
[1739287890322,0.0001067,97161.0,97160.0,1.34391516]
[1739287891155,0.0001067,97161.0,97160.0,1.24141151]
[1739287891808,0.205804,97180.0,97163.0,0.154378]
[1739287892015,0.00013311,97185.0,97165.0,0.023]
[1739287892218,0.205813,97176.0,97165.0,0.12550365]
[1739287892428,0.205813,97176.0,97164.0,0.3226]
[1739287892429,0.0825,97178.0,97164.0,0.3226]
[1739287892732,0.154374,97167.0,97164.0,0.3226]
[1739287892960,0.154375,97166.0,97164.0,0.3226]
[1739287893096,0.154376,97165.0,97164.0,0.3226]
[1739287893303,0.15630869,97165.0,97164.0,0.3226]
[1739287893955,0.15425872,97165.0,97164.0,0.3226]
[1739287895419,0.00193269,97165.0,97164.0,0.3226]
[1739287895626,0.154376,97165.0,97164.0,0.3226]
[1739287896036,0.15630869,97165.0,97164.0,0.3256]
[1739287896252,0.15630869,97165.0,97164.0,0.3266]
[1739287896640,0.15630869,97165.0,97164.0,0.3256]
[1739287898101,0.15630869,97165.0,97164.0,0.003]
[1739287898307,0.20380869,97165.0,97164.0,0.003]
[1739287898721,0.201876,97165.0,97164.0,0.003]
[1739287899150,0.154382,97161.0,97160.0,0.00022386]
[1739287901724,0.155382,97161.0,97160.0,0.00022386]
[1739287903854,0.156382,97161.0,97160.0,0.00022386]
[1739287908911,0.002,97161.0,97160.0,0.00022386]
[1739287909315,0.001,97161.0,97160.0,0.00022386]
[1739287910180,0.0001066,97165.0,97160.0,0.00022386]
[1739287910586,0.0001066,97165.0,97160.0,0.00122386]
[1739287911053,0.0001066,97165.0,97160.0,0.00022386]
[1739287911446,0.002,97161.0,97160.0,0.00022386]
[1739287911787,0.0011066,97165.0,97160.0,0.00022386]
[1739287912580,0.0021066,97165.0,97160.0,0.00022386]
[1739287913767,0.0011066,97165.0,97160.0,0.00022386]
[1739287914210,0.0011066,97165.0,97164.0,0.177378]
[1739287914417,0.0011066,97165.0,97164.0,0.40158165]
[1739287914663,0.0011066,97165.0,97164.0,0.72418165]
[1739287915066,0.0011066,97165.0,97164.0,0.56980365]
[1739287915325,0.0011066,97165.0,97164.0,0.72418165]
[1739287915566,0.0001066,97165.0,97164.0,0.72418165]
[1739287916075,0.0021066,97165.0,97164.0,0.72418165]
[1739287916591,0.0011066,97165.0,97164.0,0.72418165]
[1739287916959,0.0011066,97165.0,97164.0,0.57280365]
[1739287918408,0.0011066,97165.0,97164.0,0.72718165]
[1739287918988,0.0001066,97165.0,97164.0,0.72718165]
[1739287919623,0.0001066,97165.0,97164.0,0.72418165]
[1739287919841,0.0001066,97165.0,97164.0,0.73218165]
[1739287920144,0.0001066,97165.0,97164.0,0.53200365]
[1739287920346,0.0001066,97165.0,97164.0,0.53700365]
[1739287920897,0.205799,97182.0,97164.0,0.3306]
[1739287921105,0.154376,97165.0,97164.0,0.3306]
[1739287921356,0.205812,97176.0,97164.0,0.3306]
[1739287921558,0.154374,97167.0,97164.0,0.3306]
[1739287921986,0.154375,97166.0,97164.0,0.3306]
[1739287922193,0.205829,97168.0,97164.0,0.3306]
[1739287922399,0.205814,97175.0,97164.0,0.3226]
[1739287922685,0.154375,97166.0,97164.0,0.3226]
[1739287922891,0.154374,97167.0,97164.0,0.3226]
[1739287923302,0.20582,97173.0,97164.0,0.3226]
[1739287923504,0.15,97182.0,97164.0,0.3226]
[1739287923846,0.15,97182.0,97164.0,0.476978]
[1739287923847,0.001,97175.0,97164.0,0.476978]
[1739287924046,0.001,97175.0,97164.0,0.42510365]
[1739287924537,0.0011066,97175.0,97164.0,0.42510365]
[1739287924769,0.0011066,97175.0,97166.0,0.285833]
[1739287925024,0.0011066,97175.0,97167.0,0.12550365]
[1739287925246,0.0011066,97175.0,97168.0,0.205829]
[1739287925457,0.0011066,97175.0,97170.0,0.154367]
[1739287925668,0.0011066,97175.0,97169.0,0.10250365]
[1739287925871,0.0011066,97175.0,97170.0,0.205824]
[1739287926071,0.0001066,97175.0,97170.0,0.205824]
[1739287926501,0.0001066,97175.0,97172.0,0.154364]
[1739287926918,0.0001066,97175.0,97169.0,0.10250365]
[1739287927947,0.0011066,97175.0,97170.0,0.008]
[1739287929650,0.0011066,97175.0,97171.0,0.154367]
[1739287930053,0.0011066,97175.0,97170.0,0.008]
[1739287930190,0.0001066,97175.0,97168.0,0.154371]
[1739287930396,0.0001066,97175.0,97170.0,0.002]
[1739287930618,0.0001066,97175.0,97171.0,0.12550365]
[1739287930818,0.0001066,97175.0,97172.0,0.154365]
[1739287931026,0.0001066,97175.0,97173.0,0.10250365]
[1739287931238,0.0001066,97175.0,97174.0,0.30429099]
[1739287931510,0.0001066,97175.0,97174.0,0.40576565]
[1739287932238,0.0001066,97175.0,97174.0,0.25140365]
[1739287932449,0.0001066,97175.0,97174.0,0.40576565]
[1739287933634,0.0001066,97175.0,97174.0,0.41176565]
[1739287934436,0.0001066,97175.0,97174.0,0.006]
[1739287934645,0.0001066,97175.0,97174.0,0.021]
[1739287935065,0.0001066,97175.0,97174.0,0.006]
[1739287935496,0.0001066,97175.0,97174.0,0.3426]
[1739287936077,0.0001066,97175.0,97174.0,0.3286]
[1739287936283,0.00206573,97175.0,97174.0,0.3226]
[1739287936579,0.0001066,97175.0,97174.0,0.3226]
[1739287936784,0.0001066,97175.0,97174.0,0.3266]
[1739287936994,0.0001066,97175.0,97174.0,0.45210365]
[1739287937198,0.0001066,97175.0,97174.0,0.60646565]
[1739287937816,0.0001066,97175.0,97174.0,0.61846565]
[1739287938742,0.0001066,97175.0,97174.0,0.3266]
[1739287939082,0.0001066,97175.0,97174.0,0.3416]
[1739287939289,0.00206493,97175.0,97174.0,0.3376]
[1739287939656,0.0001066,97175.0,97174.0,0.3376]
[1739287939863,0.0001066,97175.0,97174.0,0.3226]
[1739287940078,0.0001066,97175.0,97174.0,0.3276]
[1739287940490,0.0001066,97175.0,97174.0,0.3226]
[1739287940641,0.00206493,97175.0,97174.0,0.3226]
[1739287941246,0.00206493,97175.0,97174.0,0.3266]
[1739287941630,0.00206493,97175.0,97174.0,0.3386]
[1739287942246,0.00206493,97175.0,97174.0,0.3266]
[1739287942247,0.15642493,97175.0,97174.0,0.3266]
[1739287942718,0.15642493,97175.0,97174.0,0.3386]